Cogmind - Beta 13 @@@ ROGUE MODE // 2024.05.17 @ 15:20:59 Player: Joshi Result: Destroyed by 0J-AL0(R) with Subdweller Machine Gun Performance ------------- Evolutions (0) 0 Regions Visited (2) 400 Robots Destroyed (27) 135 Value Destroyed (575) 575 Prototype IDs (4) 80 Alien Tech Used (0) 0 Bonus (8) 8 TOTAL SCORE: 1198 Bonus ------- High Alert Combat Kills 8 Cogmind --------- Core Integrity 0/250 Matter 188/300 Energy 96/100 System Corruption 0% Temperature Cool (0) Movement Walking (120) Location -10/Subcaves Parts ------- > --- POWER (1) -------- (None) > --- PROPULSION (2) --- Aluminum Leg Aluminum Leg > --- UTILITY (2) ------ Medium Storage Unit Signal Interpreter > --- WEAPON (2) ------- Mining Claw > --- INVENTORY (10) --- Ion Engine Large Storage Unit Large Battery (200) High-capacity Matter Pod (35) Structural Scanner Visual Processing Unit Scrap Shield Hacking Suite Grenade Launcher Peak State ------------ > --- POWER ------------ Ion Engine > --- PROPULSION ------- Aluminum Leg Aluminum Leg > --- UTILITY ---------- Medium Storage Unit Improved Terrain Scanner > --- WEAPON ----------- Assault Rifle Light Assault Rifle > --- INVENTORY -------- Light Treads Light Treads Heat Sink Large Battery High-capacity Matter Pod Sensor Array Signal Interpreter Propulsion Shielding Propulsion Shielding Mining Laser [Rating: 10] Favorites ----------- Power Ion Engine Engine Ion Engine Propulsion Aluminum Leg Leg Aluminum Leg Utility Medium Storage Unit Device Structural Scanner Storage Medium Storage Unit Processor Signal Interpreter Protection Propulsion Shielding Weapon Grenade Launcher Energy Gun EM Pulse Gun Ballistic Gun Assault Rifle Launcher Grenade Launcher Slashing Weapon Mining Claw Build | -11 -10 -10 ------- Run | Yrd Mat Sub Slots Evolved . | . . . Power . | . . . Propulsion . | . . . Utility . | . . . Weapon . | . . . Parts Attached 44 | 9 34 1 Power 6 | 1 5 . Engine 6 | 1 5 . Core . | . . . Reactor . | . . . Propulsion 13 | 2 10 1 Treads . | . . . Leg 13 | 2 10 1 Wheel . | . . . Hover . | . . . Flight . | . . . Utility 17 | 3 14 . Device 12 | 2 10 . Storage 2 | 1 1 . Processor 1 | . 1 . Hackware . | . . . Protection 2 | . 2 . Artifact . | . . . Weapon 8 | 3 5 . Energy Gun 3 | 1 2 . Energy Cannon . | . . . Ballistic Gun 2 | 2 . . Ballistic Cannon . | . . . Launcher 2 | . 2 . Special Weapon . | . . . Impact Weapon . | . . . Slashing Weapon 1 | . 1 . Piercing Weapon . | . . . Special Melee Weapon . | . . . Unidentified Prototypes . | . . . Parts Lost 5 | . 4 1 Power 2 | . 1 1 Propulsion 1 | . 1 . Utility 1 | . 1 . Weapon 1 | . 1 . Highest Loss Streak 3 | . 3 1 To Critical Strikes . | . . . Average Slot Usage (%) 96 | . 98 83 Engine 13 | . 13 12 Leg 27 | . 27 28 Device 12 | . 13 . Storage 14 | . 14 14 Processor 1 | . . 14 Energy Gun 5 | . 6 . Ballistic Gun 8 | . 8 . Launcher 6 | . 7 . Slashing Weapon 5 | . 4 14 Naked Turns . | . . . Heaviest Build 21 | 14 21 17 Greatest Support 20 | 20 20 20 Greatest Overweight (x) 1 | . 1 . Average Overweight (x) . | . . . Largest Inventory Capacity 10 | 8 10 10 Average Capacity 9 | 7 9 10 Most Carried 10 | 5 10 10 Average Carried 8 | 3 9 9 Final Capacity 10 | 8 10 10 Final Carried 10 | 5 10 10 Class Distribution -------------------- 67% | Mutant 32% | Scavenger-Mutant Dominant Class ---------------- Mutant | -10/Materials Scavenger-Mutant | -10/Subcaves Resources | -11 -10 -10 ----------- Run | Yrd Mat Sub Matter Collected 836 | 330 506 . Remotely . | . . . Salvage Created 674 | 89 585 . Parts 58 | 13 45 . Haulers Intercepted 2 | . 2 . Recyclers Shooed . | . . . Parts Field Recycled . | . . . Retrieved Matter . | . . . Parts Self-Destructed . | . . . Prevented . | . . . Kills | -11 -10 -10 ------- Run | Yrd Mat Sub Combat Hostiles Destroyed 13 | . 13 . Guns 7 | . 7 . AOE 6 | . 6 . Classes Destroyed 8 | 1 7 . Worker 2 | . 2 . Builder 1 | . 1 . Tunneler 4 | 4 . . Hauler 2 | . 2 . Operator 2 | . 2 . Watcher 3 | . 3 . Swarmer 3 | . 3 . Grunt 10 | . 10 . Best Kill Streak 4 | 2 4 . Combat Bots Only 3 | . 3 . Max Kills in Single Turn 4 | 1 4 . Gunslinging . | . . . Exploded 2 | . 2 . Melee . | . . . Uniques/NPCs Destroyed . | . . . Combat | -11 -10 -10 -------- Run | Yrd Mat Sub Hostile Shots Fired 70 | . 55 15 Missed 21 | . 17 4 Damage Taken 895 | . 676 219 Core 259 | . 203 56 Absorbed by Shields . | . . . Redirected to Shielding 9 | . 9 . Core Remaining (%) 100 | 100 . . Volleys Fired 65 | 12 53 . Largest 2 | 2 2 . Hottest 80 | 40 80 . Shots Fired 123 | 24 99 . Gun 111 | 24 87 . Cannon . | . . . Launcher 12 | . 12 . Special . | . . . Kinetic 86 | 24 62 . Thermal . | . . . Explosive 12 | . 12 . Electromagnetic 25 | . 25 . Robot Hit Streak 10 | 5 10 . Robot Miss Streak 4 | 2 4 . Penetration Max . | . . . Secondary Targets . | . . . Shots Hit Robots 77 | 16 57 4 Core Hits 39 | 6 32 1 Critical Kills . | . . . Critical Parts Destroyed . | . . . Critical Strikes . | . . . Melee Attacks 9 | . 5 4 Impact . | . . . Slashing 9 | . 5 4 Piercing . | . . . Sneak Attacks 1 | . 1 . Combat Hostiles . | . . . Follow-up Attacks . | . . . Damage Inflicted 1978 | 167 1743 68 Guns 758 | 167 591 . Cannons . | . . . Explosions 1106 | . 1106 . Melee 114 | . 46 68 Ramming . | . . . Kinetic 592 | 167 425 . Thermal 567 | . 567 . Explosive 539 | . 539 . Electromagnetic 166 | . 166 . Impact . | . . . Slashing 114 | . 46 68 Piercing . | . . . Highest Corruption . | . . . Average Corruption . | . . . Corruption Purged . | . . . Corruption Blocked . | . . . Overload Shots . | . . . Overflow Damage 295 | . 295 . Projectiles . | . . . Explosions 295 | . 295 . Melee . | . . . Knockbacks . | . . . Impact . | . . . Kinetic . | . . . Secondary . | . . . Self-Inflicted Damage 233 | . 233 . Shots 3 | . 3 . Rammed . | . . . Targets Rammed . | . . . Kicked . | . . . Crushed . | . . . Highest Temperature 111 | . 111 . Average Temperature 37 | . 37 . Received Heat Transfer 234 | . 234 . Siege Activations . | . . . Robots Corrupted . | . . . Combat Hostiles . | . . . Parts Fried 1 | . 1 . Impact Corruptions . | . . . Robots Melted . | . . . Combat Hostiles . | . . . Parts Melted . | . . . Heat Transferred 500 | . 500 . Parts Sabotaged . | . . . Parts Stolen . | . . . Parts Stripped . | . . . Power Chain Reactions 3 | . 3 . Alert | -11 -10 -10 ------- Run | Yrd Mat Sub Peak Influence 412 | 20 412 . Initial 13 | . 13 . Average 116 | 7 132 . Maximum Alert Level 2 | . 2 . Low Security (%) 72 | 100 68 . Level 1 26 | . 30 . Level 2 . | . 1 . Level 3 . | . . . Level 4 . | . . . Level 5 . | . . . High Security . | . . . Max Security . | . . . Squads Dispatched 2 | . 2 . Investigation 1 | . 1 . Extermination . | . . . Reinforcement 1 | . 1 . Assault . | . . . Garrison . | . . . Intercept . | . . . Searches Triggered . | . . . Construction Impeded . | . . . Haulers Reinforced . | . . . Active Scanning Responses . | . . . Cargo Convoy Interrupts . | . . . Stealth | -11 -10 -10 --------- Run | Yrd Mat Sub Distress Signals . | . . . Communications Jammed . | . . . Distress Signals . | . . . Times Spotted 28 | . 21 7 Peak Tracking Total 9 | . 5 9 Tactical Retreats 1 | . 1 . Traps | -11 -10 -10 ------- Run | Yrd Mat Sub Traps Triggered . | . . . Indirectly . | . . . Trap Hack Attempts . | . . . Triggered . | . . . Disarmed 3 | . 3 . Reprogrammed . | . . . Reused . | . . . Traps Extracted . | . . . Installed . | . . . Triggered . | . . . Machines | -11 -10 -10 ---------- Run | Yrd Mat Sub Machines Disabled 6 | . 6 . Max in Single Turn 5 | . 5 . Machines Repaired . | . . . Machines Dismantled . | . . . Machines Sabotaged . | . . . Overloaded Fab Kills . | . . . Hacking | -11 -10 -10 --------- Run | Yrd Mat Sub Machines Accessed 9 | . 9 . Terminals 7 | . 7 . Fabricators . | . . . Repair Stations . | . . . Recycling Units 2 | . 2 . Scanalyzers . | . . . Garrison Access . | . . . Total Hacks 23 | . 23 . Successful 13 | . 13 . Failed 10 | . 10 . Catastrophic 1 | . 1 . Database Lockouts . | . . . Manual . | . . . Terminals 18 | . 18 . Fabricators . | . . . Repair Stations . | . . . Recycling Units 5 | . 5 . Scanalyzers . | . . . Garrison Access . | . . . Terminal Hacks 10 | . 10 . Robot Analysis 2 | . 2 . Prototype ID Bank 2 | . 2 . Alert Level 1 | . 1 . Unreport Threat 1 | . 1 . Disarm Traps 1 | . 1 . Investigation Status 1 | . 1 . Zone Layout 2 | . 2 . Fabricator Hacks . | . . . Repair Station Hacks . | . . . Recycling Unit Hacks 3 | . 3 . Report Inventory 2 | . 2 . Retrieve Components 1 | . 1 . Scanalyzer . | . . . Garrison Access Hacks . | . . . Unauthorized Hacks . | . . . Terminals . | . . . Fabricators . | . . . Repair Stations . | . . . Recycling Units . | . . . Scanalyzers . | . . . Garrison Access . | . . . Data Cores Recovered . | . . . Used . | . . . Hacking Detections 8 | . 8 . Full Trace Events 1 | . 1 . Feedback Events . | . . . Feedback Blocked . | . . . Robot Schematics Acquired . | . . . Robots Built . | . . . Authchips . | . . . Time . | . . . Total Robot Build Rating . | . . . Part Schematics Acquired . | . . . Parts Built . | . . . Authchips . | . . . Time . | . . . Total Part Build Rating . | . . . Parts Repaired . | . . . Time . | . . . Parts Recycled . | . . . Recycled Matter . | . . . Retrieved Matter . | . . . Retrieved Components 1 | . 1 . Parts Scanalyzed . | . . . Part Schematics Acquired . | . . . Parts Damaged . | . . . Bothacking | -11 -10 -10 ------------ Run | Yrd Mat Sub Used RIF Installer . | . . . Robots Hacked . | . . . Non-combat . | . . . Combat . | . . . Robot Hacks Applied . | . . . Relay Couplers Released . | . . . Fabnet Peak Effective % . | . . . Robots Rewired . | . . . Allies Hacked . | . . . Hacks Repelled . | . . . Allies | -11 -10 -10 -------- Run | Yrd Mat Sub Total Allies . | . . . Largest Group . | . . . Highest-Rated Group . | . . . Highest-Rated Ally . | . . . Total Orders . | . . . Ally Attacks . | . . . Total Damage . | . . . Kills . | . . . Allies Corrupted . | . . . Allies Melted . | . . . Intel | -11 -10 -10 ------- Run | Yrd Mat Sub Robot Analysis Total 2 | . 2 . Derelict Logs Recovered . | . . . Drone Launches . | . . . Drone Recoveries . | . . . Exploration | -11 -10 -10 ------------- Run | Yrd Mat Sub Turns Passed 1881 | 232 1523 126 Spaces Moved 1114 | 152 868 94 Core 9 | 9 . . Treads . | . . . Legs 1105 | 143 868 94 Wheels . | . . . Hover . | . . . Flight . | . . . Fastest Speed 50 | 50 120 120 Average Speed 140 | 115 146 120 Slowest Speed 190 | 120 190 120 Overloaded Moves . | . . . Propulsion Burnouts . | . . . Robots Hopped . | . . . Cave-ins Triggered . | . . . Exploration Rate (%) 36 | 7 91 11 Regions Visited 2 Branch Regions 1 Pre-discovered Areas . | . . . Known Exits Taken 1 | . 1 . Unknown Exits Taken 1 | 1 . . Scrap Searched . | . . . Spaces Dug 3 | . 3 . Terrain Destroyed 76 | . 76 . Melee 3 | . 3 . Projectile . | . . . AOE 73 | . 73 . Terrain Rammed . | . . . Walls Destroyed . | . . . Machines Disabled . | . . . Actions | -11 -10 -10 --------- Run | Yrd Mat Sub Total 1296 | 184 1010 102 Wait 13 | . 13 . Move 1112 | 151 867 94 Hop . | . . . Pick Up 28 | 10 17 1 Fast Attach 8 | 4 4 . Attach 7 | 3 4 . Detach 1 | . 1 . Swap 29 | 2 26 1 Drop 24 | 2 20 2 Fire 65 | 12 53 . Melee 9 | . 5 4 Ram . | . . . Kick . | . . . Crush . | . . . Escape Stasis . | . . . Rewire . | . . . Trap . | . . . Miscellaneous . | . . . Route ------- -11/Scrapyard -10/Materials (discovered 5 exits: [*Mat x2] / [*Min x2] / *Sub) -10/Subcaves History --------- Turn | Location | Event 7 | -11/Scrapyard | Discovered new exit (range 16) 233 | -11/Scrapyard | Entered Materials 307 | -10/Materials | Build established: Mutant 385 | -10/Materials | Discovered new exit (range 6) 702 | -10/Materials | Discovered new exit (range 14) 908 | -10/Materials | Core integrity fell below 50% 938 | -10/Materials | Lost 3 parts (1p1n1u) 954 | -10/Materials | Build established: Scavenger-Mutant 1017 | -10/Materials | Core integrity fell below 20% 1147 | -10/Materials | Discovered new exit (range 16) 1409 | -10/Materials | Build established: Mutant 1560 | -10/Materials | Discovered new exit (range 12) 1741 | -10/Materials | Discovered new exit (range 12) 1755 | -10/Materials | Identified exit to Subcaves 1756 | -10/Materials | Entered Subcaves 1870 | -10/Subcaves | Ambushed by swarm of Subdwellers 1870 | -10/Subcaves | Ambushed by Subdwellers from Twisted Machinery 1873 | -10/Subcaves | Ambushed by Subdwellers from Twisted Machinery 1876 | -10/Subcaves | Ambushed by Subdwellers from Twisted Machinery 1882 | -10/Subcaves | Destroyed by 0J-AL0(R) with Subdweller Machine Gun Last Messages --------------- 0J-AL0(R) angrily emerges from the Twisted Machinery. HV Slug penetrates Twisted Machinery. 7B-DAD(R) angrily emerges from the Twisted Machinery. HV Slug penetrates TV-5VR(R). TV-5VR(R) suffers critical hit (Destroy). 3M-5P1(g): "Sorry we're late! Had another grouchy Sub to deal with. Who's the new fellow?" Ion Engine destroyed. Subatomizers dissect the Sub. Monowheel. AY-6IJ(g) destroyed. HV Slug penetrates TV-5VR(R). 06-77W(R) destroyed. TV-5VR(R) affixes Scrap Shield Fragment to Scrap Shield. 7B-DAD(R) destroyed. HV Slug penetrates TV-5VR(R). TV-5VR(R) suffers critical hit (Destroy). Map ----- +----------------------------------------------------+ | ???????????### ### #?## #????????????????? | | ???????????# ### #????????????????? | | ????????????# ### ##????????????????? | | ?????????????# ?# #?????????????????? | | ???????? ??## ?## #?????????????????? | | ??????? ## #?## ##????????????????? | | ??????? "" ### ##???????????????? | | ????????? """ #???????????????? | | ???????? """"" #??????????????? | | ????????# """ "" ## #?????????????? | | ?????????# "" " #### #?????????????? | | ????????## ## #??## ##?????????????? | | ???# ## ??# #???# ## ##??????????????? | | ????# ??# #???#####?# #???????????????? | | ?????# ## #??????????###???????????????? | | ?????# ###??##########??????????????? | | ??????# # ; ?## #??????????????? | | ??? #???# ## #??????????????? | | ?? ????????####; # ### #??????????????? | | ?????????????# ;; gg ### ##??????????????? | | ??????????????# =&& ##???????????????? | | ??????????????# !%R& #????????????????? | | ??????????????# =&*= ##????????????????? | | ???????????????# ;; %=hR " #?????????????????? | | ?????????????????## ]&&#"###?????????????????? | | ?????????????????# @R## # ##?????????????? | | ?????????????????## R #?????????????? | | ??????????????????# R #?????????????? | | ??????????????????# ### ### #?????????????? | | ??????????????????# ##?# #?? #?????????????? | | ??????????????????###???## ?? #?????????????? | | ?????????????????????????# ?? #?????????????? | | ?????????????????????????# ??#?????????????? | | ????????????????????????? ???????????????? | | ????????????????????????? #??????????????? | | ????????????????????????? ### #??????????????? | | ????????????????????????? #??# #??????????????? | | ????????????????????????? #???# #??????????????? | | ????????????????????????? ????##??????????????? | | ????????????????????????? ????????????????????? | | ????????????????????????? ????????????????????? | | ????????????????????????? ????????????????????? | | ????????????????????????????????????????????????? | | ????????????????????????????????????????????????? | | ????????????????????????????????????????????????? | | ????????????????????????????????????????????????? | | ????????????????????????????????????????????????? | | ????????????????????????????????????????????????? | | ????????????????????????????????????????????????? | | ????????????????????????????????????????????????? | +----------------------------------------------------+ Best States ------------- Heat Dissipation 25 Energy Generation 10 Energy Capacity 250 Matter Stores 300 Matter Capacity 300 Sight Range 16 Robot Scan Range 14 Terrain Scan Range 16 Terrain Scan Density 10 Propulsion Shielding 33 Evasion (%) 55 Item Schematics ----------------- None Robot Schematics ------------------ None Fabricated ------------ Nothing Alien Tech Used ----------------- None Achievements -------------- Everything Is Under Control Loot Pinata Challenges ------------ None Game ------ Seed AluminumAdvancedNukerbomber Manual? 0 Play Time 00:35:27 Cumulative 4.8 hours Start 2024.05.17 @ 13:23:25 End 2024.05.17 @ 15:20:59 Sessions 3 Manual Loads 0 Difficulty Rogue Special Mode None Game No. 4 Rogue 4 Adventurer 0 Explorer 0 Win Type - Total 0 Types 0/0/0/0/0/0/0/0/0 Lore% 6 Gallery% 8 Achievement% 10 Wizard Run 0 Options --------- Layout 1 ASCII 0 Keyboard 0 Movement Mouse Keybinds 0 Fullscreen 1 Font 24/Smallcaps Map View 50x35 Zoom Use 0% Tactical HUD 0 Map Filters NONE Filters NONE Steam 1 RUN: efbf2e94-bc1f-4c00-9af7-f8700a2a5652